[Event "*** SCC Grand Prix: Titled Tuesday Blitz"]
[Site "Chess.com"]
[Date "2020.06.23"]
[Round "2"]
[White "SavelievAlexei"]
[Black "zala02"]
[Result "1-0"]
[WhiteElo "2414"]
[BlackElo "2169"]
[TimeControl "180+1"]
[EndTime "10:19:16 PDT"]
[Termination "SavelievAlexei won on time"]

1. e4 {[%clk 0:02:48.5]} 1... c5 {[%clk 0:02:59.6]} 2. Nf3 {[%clk 0:02:45.2]}
2... Nc6 {[%clk 0:02:57.3]} 3. Nc3 {[%clk 0:02:42.1]} 3... g6 {[%clk 0:02:45.8]}
4. d4 {[%clk 0:02:39.2]} 4... cxd4 {[%clk 0:02:46.4]} 5. Nxd4 {[%clk 0:02:40.1]}
5... Bg7 {[%clk 0:02:43.7]} 6. Be3 {[%clk 0:02:28.7]} 6... Nf6 {[%clk
0:02:41.7]} 7. Bc4 {[%clk 0:02:28.8]} 7... O-O {[%clk 0:02:38.1]} 8. Bb3 {[%clk
0:02:25.8]} 8... Re8 {[%clk 0:02:33.1]} 9. f3 {[%clk 0:02:21]} 9... e6 {[%clk
0:02:17]} 10. f4 {[%clk 0:02:21.1]} 10... e5 {[%clk 0:01:43.9]} 11. fxe5 {[%clk
0:02:11.2]} 11... Nxe5 {[%clk 0:01:37.8]} 12. O-O {[%clk 0:01:46.5]} 12... Neg4
{[%clk 0:01:26.2]} 13. Qf3 {[%clk 0:00:32.2]} 13... Nxe3 {[%clk 0:01:08.2]} 14.
Qxe3 {[%clk 0:00:33.1]} 14... d5 {[%clk 0:01:06.9]} 15. e5 {[%clk 0:00:23.7]}
15... Ng4 {[%clk 0:01:01.7]} 16. Qf4 {[%clk 0:00:20.8]} 16... Nxe5 {[%clk
0:00:50]} 17. Bxd5 {[%clk 0:00:17]} 17... Be6 {[%clk 0:00:43.4]} 18. Nxe6 {[%clk
0:00:11.4]} 18... Rxe6 {[%clk 0:00:44.3]} 19. Bxe6 {[%clk 0:00:10]} 19... fxe6
{[%clk 0:00:41.1]} 20. Rae1 {[%clk 0:00:08]} 20... Qb6+ {[%clk 0:00:31.4]} 21.
Kh1 {[%clk 0:00:08.1]} 21... Rf8 {[%clk 0:00:30.4]} 22. Qe4 {[%clk 0:00:05.6]}
22... Rf5 {[%clk 0:00:20.1]} 23. b3 {[%clk 0:00:04.2]} 23... Qc7 {[%clk
0:00:17.3]} 24. Na4 {[%clk 0:00:04.1]} 24... h6 {[%clk 0:00:15.6]} 25. c4 {[%clk
0:00:03.8]} 25... a6 {[%clk 0:00:14.5]} 26. c5 {[%clk 0:00:03.9]} 26... Kh7
{[%clk 0:00:12.7]} 27. b4 {[%clk 0:00:03.7]} 27... Qf7 {[%clk 0:00:09.4]} 28.
Rxf5 {[%clk 0:00:02.4]} 28... Qxf5 {[%clk 0:00:10.3]} 29. Qxf5 {[%clk
0:00:02.4]} 29... gxf5 {[%clk 0:00:11.2]} 30. Nb6 {[%clk 0:00:02.4]} 30... Kg6
{[%clk 0:00:11.3]} 31. a3 {[%clk 0:00:02.2]} 31... Kf7 {[%clk 0:00:11.6]} 32.
Rd1 {[%clk 0:00:02.5]} 32... Ke7 {[%clk 0:00:11.1]} 33. Rd6 {[%clk 0:00:01.9]}
33... Nf7 {[%clk 0:00:09.4]} 34. Rd2 {[%clk 0:00:01.9]} 34... Ne5 {[%clk
0:00:08.5]} 35. Na4 {[%clk 0:00:01.8]} 35... Bf6 {[%clk 0:00:08.4]} 36. Rd6
{[%clk 0:00:01.8]} 36... Bg5 {[%clk 0:00:07.4]} 37. Rb6 {[%clk 0:00:01.9]} 37...
Bc1 {[%clk 0:00:06.8]} 38. Rxb7+ {[%clk 0:00:02.6]} 38... Kf6 {[%clk 0:00:07]}
39. Rb6 {[%clk 0:00:02]} 39... Bxa3 {[%clk 0:00:06.9]} 40. c6 {[%clk 0:00:02.6]}
40... Nxc6 {[%clk 0:00:02.6]} 41. Rxc6 {[%clk 0:00:03.5]} 41... Bxb4 {[%clk
0:00:03.5]} 42. Rxa6 {[%clk 0:00:03.8]} 42... Ke5 {[%clk 0:00:02.5]} 43. Rb6
{[%clk 0:00:03.6]} 43... Bd6 {[%clk 0:00:02.4]} 44. Rb5+ {[%clk 0:00:03.4]}
44... Kd4 {[%clk 0:00:02.1]} 45. Rb6 {[%clk 0:00:03.3]} 45... Kd5 {[%clk
0:00:01.2]} 46. Ra6 {[%clk 0:00:03.5]} 46... e5 {[%clk 0:00:01.4]} 47. Nb6+
{[%clk 0:00:03.5]} 47... Kd4 {[%clk 0:00:01.2]} 48. Nd7 {[%clk 0:00:03.5]} 1-0

[Event "*** SCC Grand Prix: Titled Tuesday Blitz"]
[Site "Chess.com"]
[Date "2020.06.23"]
[Round "2"]
[White "floplover"]
[Black "CarlssonLudvig"]
[Result "0-1"]
[WhiteElo "2219"]
[BlackElo "2448"]
[TimeControl "180+1"]
[EndTime "10:19:18 PDT"]
[Termination "CarlssonLudvig won on time"]

1. d4 {[%clk 0:03:00.9]} 1... Nf6 {[%clk 0:02:54.8]} 2. c4 {[%clk 0:03:00.7]}
2... g6 {[%clk 0:02:55.2]} 3. Nc3 {[%clk 0:03:01.2]} 3... d5 {[%clk 0:02:55.8]}
4. cxd5 {[%clk 0:03:01.1]} 4... Nxd5 {[%clk 0:02:56.7]} 5. e4 {[%clk 0:03:01.7]}
5... Nxc3 {[%clk 0:02:57.2]} 6. bxc3 {[%clk 0:03:02.6]} 6... Bg7 {[%clk
0:02:57.9]} 7. Be3 {[%clk 0:03:02.1]} 7... O-O {[%clk 0:02:57.6]} 8. Rc1 {[%clk
0:02:58.7]} 8... Nc6 {[%clk 0:02:54.2]} 9. Nf3 {[%clk 0:02:56.4]} 9... b6 {[%clk
0:02:53.2]} 10. Be2 {[%clk 0:02:48.1]} 10... Bb7 {[%clk 0:02:50.7]} 11. O-O
{[%clk 0:02:35.7]} 11... e5 {[%clk 0:02:37]} 12. d5 {[%clk 0:02:22.7]} 12... Ne7
{[%clk 0:02:32.6]} 13. c4 {[%clk 0:02:21.2]} 13... c5 {[%clk 0:02:28.9]} 14. a4
{[%clk 0:01:58.1]} 14... Nc8 {[%clk 0:02:24.3]} 15. Rb1 {[%clk 0:01:52]} 15...
Nd6 {[%clk 0:02:23]} 16. Qc2 {[%clk 0:01:46.3]} 16... Re8 {[%clk 0:02:14.2]} 17.
a5 {[%clk 0:01:45]} 17... Ba6 {[%clk 0:02:03.3]} 18. Rb3 {[%clk 0:01:33]} 18...
Qc7 {[%clk 0:01:54.1]} 19. Rfb1 {[%clk 0:01:32.5]} 19... bxa5 {[%clk 0:01:44.9]}
20. Nd2 {[%clk 0:01:08.3]} 20... f5 {[%clk 0:01:42]} 21. f3 {[%clk 0:01:06]}
21... Bf6 {[%clk 0:01:34.5]} 22. Ra3 {[%clk 0:01:01]} 22... Rab8 {[%clk
0:01:27]} 23. Nb3 {[%clk 0:00:51]} 23... fxe4 {[%clk 0:01:07.4]} 24. fxe4 {[%clk
0:00:50.9]} 24... Rb4 {[%clk 0:00:50.6]} 25. Rba1 {[%clk 0:00:39]} 25... Nxc4
{[%clk 0:00:47.2]} 26. Bxc4 {[%clk 0:00:36.8]} 26... Rxc4 {[%clk 0:00:47.3]} 27.
Qd2 {[%clk 0:00:24.2]} 27... Rxe4 {[%clk 0:00:33.4]} 28. Nxc5 {[%clk 0:00:22.8]}
28... Rxe3 {[%clk 0:00:19.2]} 29. Qxe3 {[%clk 0:00:22.7]} 29... Bc8 {[%clk
0:00:16.9]} 30. Rxa5 {[%clk 0:00:21.8]} 30... e4 {[%clk 0:00:16.9]} 31. Rxa7
{[%clk 0:00:18.7]} 31... Qe5 {[%clk 0:00:07.4]} 32. Rd1 {[%clk 0:00:18.5]} 32...
Bd8 {[%clk 0:00:06.5]} 33. d6 {[%clk 0:00:15.3]} 33... Bb6 {[%clk 0:00:06.3]}
34. d7 {[%clk 0:00:08.3]} 34... Bxd7 {[%clk 0:00:04.4]} 35. Raxd7 {[%clk
0:00:07.3]} 35... Bxc5 {[%clk 0:00:04.4]} 36. R1d4 {[%clk 0:00:05.8]} 36... Rf8
{[%clk 0:00:03.6]} 37. h3 {[%clk 0:00:03.8]} 37... Bxd4 {[%clk 0:00:03.5]} 38.
Rxd4 {[%clk 0:00:03.2]} 38... Re8 {[%clk 0:00:03.5]} 39. Qf2 {[%clk 0:00:02.1]}
39... Re7 {[%clk 0:00:03.6]} 40. Qe3 {[%clk 0:00:02.3]} 40... Kg7 {[%clk
0:00:03.7]} 41. g3 {[%clk 0:00:02.4]} 41... Qf6 {[%clk 0:00:03.9]} 42. Kg2
{[%clk 0:00:03.3]} 42... Qf5 {[%clk 0:00:03.6]} 43. Rc4 {[%clk 0:00:03.1]} 43...
Rf7 {[%clk 0:00:03.6]} 44. Rxe4 {[%clk 0:00:02.8]} 44... Qf1+ {[%clk 0:00:03.5]}
45. Kh2 {[%clk 0:00:02.1]} 45... Rf2+ {[%clk 0:00:04.4]} 46. Qxf2 {[%clk
0:00:02.1]} 46... Qxf2+ {[%clk 0:00:05.3]} 0-1

[Event "*** SCC Grand Prix: Titled Tuesday Blitz"]
[Site "Chess.com"]
[Date "2020.06.23"]
[Round "2"]
[White "Mikhail_Golubev"]
[Black "kirillshevchenko"]
[Result "1/2-1/2"]
[WhiteElo "2601"]
[BlackElo "2929"]
[TimeControl "180+1"]
[EndTime "10:19:19 PDT"]
[Termination "Game drawn by agreement"]

1. e4 {[%clk 0:03:00.9]} 1... c6 {[%clk 0:02:57.4]} 2. d4 {[%clk 0:03:00.2]}
2... d5 {[%clk 0:02:57.6]} 3. Nc3 {[%clk 0:03:00.7]} 3... dxe4 {[%clk
0:02:55.7]} 4. Nxe4 {[%clk 0:03:00.2]} 4... Nf6 {[%clk 0:02:56.1]} 5. Nxf6+
{[%clk 0:02:59.6]} 5... exf6 {[%clk 0:02:57]} 6. c3 {[%clk 0:02:58]} 6... Bd6
{[%clk 0:02:56.9]} 7. Bd3 {[%clk 0:02:58.1]} 7... O-O {[%clk 0:02:56.9]} 8. Ne2
{[%clk 0:02:57.7]} 8... Re8 {[%clk 0:02:56.7]} 9. Qc2 {[%clk 0:02:57.5]} 9... h5
{[%clk 0:02:56.5]} 10. Be3 {[%clk 0:02:56.3]} 10... h4 {[%clk 0:02:56.2]} 11. h3
{[%clk 0:02:50]} 11... Nd7 {[%clk 0:02:53.2]} 12. O-O-O {[%clk 0:02:49.4]} 12...
b5 {[%clk 0:02:36.6]} 13. d5 {[%clk 0:02:38.1]} 13... cxd5 {[%clk 0:02:00]} 14.
Bh7+ {[%clk 0:02:23.1]} 14... Kf8 {[%clk 0:01:56.4]} 15. Rxd5 {[%clk 0:02:21.5]}
15... Nb6 {[%clk 0:01:47.9]} 16. Rh5 {[%clk 0:01:45.4]} 16... Re5 {[%clk
0:01:41.5]} 17. Bf5 {[%clk 0:01:31.2]} 17... Bxf5 {[%clk 0:01:38.5]} 18. Rh8+
{[%clk 0:01:10.9]} 18... Ke7 {[%clk 0:01:38.1]} 19. Rxd8 {[%clk 0:01:10.5]}
19... Bxc2 {[%clk 0:01:36.7]} 20. Rxa8 {[%clk 0:01:08.4]} 20... Nxa8 {[%clk
0:01:34.6]} 21. Kxc2 {[%clk 0:01:08.1]} 21... Nb6 {[%clk 0:01:30.1]} 22. Nd4
{[%clk 0:01:01.9]} 22... Kd7 {[%clk 0:01:20.1]} 23. Nf3 {[%clk 0:01:01.9]} 23...
Rh5 {[%clk 0:01:07.1]} 24. Rd1 {[%clk 0:01:00.5]} 24... Nd5 {[%clk 0:00:58.1]}
25. Bxa7 {[%clk 0:00:58.4]} 25... Kc7 {[%clk 0:00:42.6]} 26. Nd4 {[%clk
0:00:54.7]} 26... Nf4 {[%clk 0:00:41.8]} 27. g4 {[%clk 0:00:27.1]} 27... hxg3
{[%clk 0:00:41.5]} 28. fxg3 {[%clk 0:00:26.9]} 28... Nxh3 {[%clk 0:00:38]} 29.
g4 {[%clk 0:00:24.1]} 29... Rd5 {[%clk 0:00:32.2]} 30. Rh1 {[%clk 0:00:19.2]}
30... Nf2 {[%clk 0:00:23.9]} 31. Rh7 {[%clk 0:00:17.9]} 31... Rg5 {[%clk
0:00:24.4]} 32. Nf5 {[%clk 0:00:17.4]} 32... Nxg4 {[%clk 0:00:23.3]} 33. Rxg7
{[%clk 0:00:15.2]} 33... Rxg7 {[%clk 0:00:13.9]} 34. Nxg7 {[%clk 0:00:15.3]}
34... Kc6 {[%clk 0:00:13.8]} 35. Nf5 {[%clk 0:00:13.5]} 35... Be5 {[%clk
0:00:12.1]} 36. b3 {[%clk 0:00:11.6]} 36... Kd5 {[%clk 0:00:11.4]} 37. a4 {[%clk
0:00:11.1]} 37... bxa4 {[%clk 0:00:11.4]} 38. bxa4 {[%clk 0:00:10.9]} 38... Kc4
{[%clk 0:00:12]} 39. a5 {[%clk 0:00:11.1]} 39... Kb5 {[%clk 0:00:09]} 40. Bb6
{[%clk 0:00:11]} 40... Nh2 {[%clk 0:00:06]} 41. Kd3 {[%clk 0:00:10.5]} 41... Nf3
{[%clk 0:00:04.9]} 42. c4+ {[%clk 0:00:10.6]} 42... Ka6 {[%clk 0:00:04.7]} 43.
c5 {[%clk 0:00:10.9]} 43... Kb5 {[%clk 0:00:02.2]} 44. Ne7 {[%clk 0:00:09.9]}
44... Ne1+ {[%clk 0:00:01.8]} 45. Ke4 {[%clk 0:00:09.5]} 45... Nc2 {[%clk
0:00:02.2]} 46. c6 {[%clk 0:00:09.5]} 46... Nb4 {[%clk 0:00:02.3]} 47. c7 {[%clk
0:00:09.7]} 47... Bxc7 {[%clk 0:00:02.6]} 48. Bxc7 {[%clk 0:00:09.9]} 48... Nc6
{[%clk 0:00:03.2]} 49. Nxc6 {[%clk 0:00:08.7]} 49... Kxc6 {[%clk 0:00:04.1]} 50.
Bb6 {[%clk 0:00:08.8]} 50... f5+ {[%clk 0:00:03.9]} 51. Kxf5 {[%clk 0:00:09.1]}
51... f6 {[%clk 0:00:03.7]} 52. Kxf6 {[%clk 0:00:09.3]} 52... Kb7 {[%clk
0:00:04.4]} 1/2-1/2

[Event "*** SCC Grand Prix: Titled Tuesday Blitz"]
[Site "Chess.com"]
[Date "2020.06.23"]
[Round "2"]
[White "OK97"]
[Black "doons21"]
[Result "1-0"]
[WhiteElo "2834"]
[BlackElo "2543"]
[TimeControl "180+1"]
[EndTime "10:19:19 PDT"]
[Termination "OK97 won on time"]

1. d4 {[%clk 0:03:00.9]} 1... Nf6 {[%clk 0:02:59.8]} 2. Nf3 {[%clk 0:03:01]}
2... g6 {[%clk 0:02:59.4]} 3. Bg5 {[%clk 0:03:00.2]} 3... Bg7 {[%clk 0:02:58.4]}
4. c3 {[%clk 0:03:00.2]} 4... O-O {[%clk 0:02:56.8]} 5. Nbd2 {[%clk 0:03:00.3]}
5... d5 {[%clk 0:02:56.5]} 6. e3 {[%clk 0:03:00.2]} 6... Nc6 {[%clk 0:02:54.6]}
7. Be2 {[%clk 0:02:50.9]} 7... Re8 {[%clk 0:02:54.8]} 8. O-O {[%clk 0:02:13]}
8... e5 {[%clk 0:02:35.9]} 9. b4 {[%clk 0:02:06.6]} 9... h6 {[%clk 0:02:05.3]}
10. Bh4 {[%clk 0:02:02]} 10... e4 {[%clk 0:02:05.1]} 11. Ne1 {[%clk 0:02:02.1]}
11... Ne7 {[%clk 0:02:05.1]} 12. c4 {[%clk 0:01:54.8]} 12... c6 {[%clk
0:02:04.5]} 13. Bg3 {[%clk 0:01:31.2]} 13... Nh7 {[%clk 0:01:24.1]} 14. Nb3
{[%clk 0:01:23]} 14... Nf5 {[%clk 0:01:23.4]} 15. Rc1 {[%clk 0:01:20]} 15...
Nxg3 {[%clk 0:01:18.3]} 16. hxg3 {[%clk 0:01:20.9]} 16... h5 {[%clk 0:01:08.3]}
17. b5 {[%clk 0:01:20.6]} 17... h4 {[%clk 0:01:07.4]} 18. g4 {[%clk 0:01:13.3]}
18... Qg5 {[%clk 0:00:55.7]} 19. bxc6 {[%clk 0:00:53.7]} 19... bxc6 {[%clk
0:00:54.2]} 20. Rc3 {[%clk 0:00:40]} 20... Nf6 {[%clk 0:00:29.8]} 21. f4 {[%clk
0:00:39.6]} 21... exf3 {[%clk 0:00:30.7]} 22. Nxf3 {[%clk 0:00:39.8]} 22... Qxg4
{[%clk 0:00:28.4]} 23. Ne5 {[%clk 0:00:36.6]} 23... Qg5 {[%clk 0:00:24.4]} 24.
Bf3 {[%clk 0:00:33.2]} 24... Ba6 {[%clk 0:00:15.8]} 25. Nc5 {[%clk 0:00:28.3]}
25... Bxc4 {[%clk 0:00:14.9]} 26. Nxc4 {[%clk 0:00:28.5]} 26... dxc4 {[%clk
0:00:15.2]} 27. Bxc6 {[%clk 0:00:25.2]} 27... Nd5 {[%clk 0:00:15.5]} 28. Qf3
{[%clk 0:00:19.2]} 28... Nxc3 {[%clk 0:00:12.8]} 29. Bxa8 {[%clk 0:00:16.5]}
29... Qxe3+ {[%clk 0:00:10.5]} 30. Qxe3 {[%clk 0:00:16.1]} 30... Rxe3 {[%clk
0:00:11.4]} 31. Kh2 {[%clk 0:00:07.2]} 31... Bxd4 {[%clk 0:00:10.8]} 32. Na6
{[%clk 0:00:06.7]} 32... Be5+ {[%clk 0:00:08.4]} 33. Kh1 {[%clk 0:00:07.3]}
33... Ne2 {[%clk 0:00:08]} 34. Rb1 {[%clk 0:00:05.8]} 34... Ng3+ {[%clk
0:00:07.8]} 35. Kg1 {[%clk 0:00:06.4]} 35... c3 {[%clk 0:00:07.5]} 36. Nb4
{[%clk 0:00:06.7]} 36... Re2 {[%clk 0:00:06.7]} 37. Bf3 {[%clk 0:00:05.4]} 37...
Bd4+ {[%clk 0:00:04.1]} 38. Kh2 {[%clk 0:00:05.3]} 38... Rd2 {[%clk 0:00:04.6]}
39. Rc1 {[%clk 0:00:04.2]} 39... Be5 {[%clk 0:00:04]} 40. Kh3 {[%clk 0:00:04.5]}
40... f5 {[%clk 0:00:03.5]} 41. Nc6 {[%clk 0:00:04.6]} 41... Bf6 {[%clk
0:00:02.8]} 42. a4 {[%clk 0:00:03.7]} 42... Kg7 {[%clk 0:00:03]} 43. Nb4 {[%clk
0:00:03.8]} 43... Ne2 {[%clk 0:00:02.7]} 44. Rc2 {[%clk 0:00:02.7]} 44... Nf4+
{[%clk 0:00:02.4]} 45. Kh2 {[%clk 0:00:03.2]} 45... Ne6 {[%clk 0:00:02.1]} 46.
Rc1 {[%clk 0:00:02.8]} 46... Nc5 {[%clk 0:00:02]} 47. Nd5 {[%clk 0:00:03]} 47...
Nb3 {[%clk 0:00:01.2]} 48. Rb1 {[%clk 0:00:02.6]} 1-0

[Event "*** SCC Grand Prix: Titled Tuesday Blitz"]
[Site "Chess.com"]
[Date "2020.06.23"]
[Round "2"]
[White "Baby_Legs"]
[Black "Chuchofrio1"]
[Result "1-0"]
[WhiteElo "2625"]
[BlackElo "2226"]
[TimeControl "180+1"]
[EndTime "10:19:19 PDT"]
[Termination "Baby_Legs won by resignation"]

1. d4 {[%clk 0:03:00.9]} 1... Nf6 {[%clk 0:02:59.2]} 2. c4 {[%clk 0:03:00.9]}
2... e6 {[%clk 0:02:59.3]} 3. Nc3 {[%clk 0:03:01]} 3... Bb4 {[%clk 0:02:59]} 4.
Qc2 {[%clk 0:03:01.1]} 4... b6 {[%clk 0:02:58.6]} 5. e4 {[%clk 0:02:57.5]} 5...
c5 {[%clk 0:02:57.8]} 6. d5 {[%clk 0:02:55.3]} 6... Qe7 {[%clk 0:02:54.9]} 7.
Ne2 {[%clk 0:02:49.5]} 7... d6 {[%clk 0:02:41.6]} 8. Bd2 {[%clk 0:02:48.2]} 8...
exd5 {[%clk 0:02:35.8]} 9. exd5 {[%clk 0:02:48]} 9... O-O {[%clk 0:02:35.5]} 10.
O-O-O {[%clk 0:02:44.3]} 10... Ng4 {[%clk 0:02:32.1]} 11. Be1 {[%clk 0:02:34.7]}
11... Nd7 {[%clk 0:02:09.2]} 12. h3 {[%clk 0:02:22.4]} 12... Nge5 {[%clk
0:02:08.5]} 13. Ng3 {[%clk 0:02:21.4]} 13... Nf6 {[%clk 0:02:07]} 14. a3 {[%clk
0:02:15.1]} 14... Ba5 {[%clk 0:02:05.6]} 15. Kb1 {[%clk 0:02:03.7]} 15... Bd7
{[%clk 0:02:02.8]} 16. Bd2 {[%clk 0:01:54.1]} 16... b5 {[%clk 0:01:46.8]} 17.
cxb5 {[%clk 0:01:51.4]} 17... Rab8 {[%clk 0:01:39.7]} 18. Nf5 {[%clk 0:01:23.3]}
18... Bxf5 {[%clk 0:01:34.7]} 19. Qxf5 {[%clk 0:01:24.2]} 19... c4 {[%clk
0:01:19.1]} 20. f4 {[%clk 0:00:57]} 20... Nd3 {[%clk 0:01:10.5]} 21. Bxd3 {[%clk
0:00:56.2]} 21... cxd3 {[%clk 0:01:10.7]} 22. Rhe1 {[%clk 0:00:55.8]} 22... Qc7
{[%clk 0:00:59.1]} 23. Qxd3 {[%clk 0:00:55.4]} 23... Rfc8 {[%clk 0:00:49.2]} 24.
Rc1 {[%clk 0:00:54.8]} 24... Bb6 {[%clk 0:00:41.4]} 25. Ne4 {[%clk 0:00:53.3]}
25... Qd8 {[%clk 0:00:38.3]} 26. Nxf6+ {[%clk 0:00:48.3]} 26... Qxf6 {[%clk
0:00:38.4]} 27. Rxc8+ {[%clk 0:00:47.8]} 27... Rxc8 {[%clk 0:00:37.8]} 28. Qe4
{[%clk 0:00:44.3]} 28... h6 {[%clk 0:00:36.5]} 29. Bc3 {[%clk 0:00:41.7]} 29...
Qh4 {[%clk 0:00:36.2]} 30. Re2 {[%clk 0:00:36.3]} 30... Qg3 {[%clk 0:00:33.7]}
31. Qf3 {[%clk 0:00:36.6]} 31... Qg6+ {[%clk 0:00:32.9]} 32. f5 {[%clk
0:00:36.1]} 32... Qg5 {[%clk 0:00:32]} 33. Qe4 {[%clk 0:00:34.2]} 33... Qg3
{[%clk 0:00:26]} 34. Qf3 {[%clk 0:00:33.5]} 34... Qg5 {[%clk 0:00:25.8]} 35. a4
{[%clk 0:00:33.7]} 35... f6 {[%clk 0:00:20.8]} 36. Qg4 {[%clk 0:00:31.6]} 36...
Rc5 {[%clk 0:00:16.5]} 37. Qxg5 {[%clk 0:00:31.6]} 37... hxg5 {[%clk 0:00:16.3]}
38. Rd2 {[%clk 0:00:32.1]} 38... Rc4 {[%clk 0:00:15.8]} 39. a5 {[%clk
0:00:32.2]} 39... Be3 {[%clk 0:00:15.8]} 40. Rd3 {[%clk 0:00:31.9]} 40... Bf4
{[%clk 0:00:15.7]} 41. Ka2 {[%clk 0:00:31.6]} 41... Rc5 {[%clk 0:00:15.5]} 42.
b4 {[%clk 0:00:26.9]} 42... Rxb5 {[%clk 0:00:14.9]} 43. Kb3 {[%clk 0:00:27.2]}
43... Rb7 {[%clk 0:00:14.9]} 44. Bd4 {[%clk 0:00:26.1]} 44... Kf7 {[%clk
0:00:14.9]} 45. a6 {[%clk 0:00:24.9]} 45... Rd7 {[%clk 0:00:14.3]} 46. b5 {[%clk
0:00:25]} 46... Bg3 {[%clk 0:00:13.1]} 47. b6 {[%clk 0:00:23.4]} 47... axb6
{[%clk 0:00:13.2]} 48. Bxb6 {[%clk 0:00:24.3]} 48... Be5 {[%clk 0:00:12.6]} 49.
a7 {[%clk 0:00:23.9]} 49... Bd4 {[%clk 0:00:12.1]} 50. Rxd4 {[%clk 0:00:23.7]}
50... Rb7 {[%clk 0:00:12.2]} 51. a8=Q {[%clk 0:00:22.9]} 51... Rxb6+ {[%clk
0:00:12.5]} 52. Rb4 {[%clk 0:00:23.4]} 52... Ra6 {[%clk 0:00:12.7]} 53. Qxa6
{[%clk 0:00:22.8]} 1-0

[Event "*** SCC Grand Prix: Titled Tuesday Blitz"]
[Site "Chess.com"]
[Date "2020.06.23"]
[Round "2"]
[White "Irishchessman16"]
[Black "Bastiandash"]
[Result "1-0"]
[WhiteElo "2447"]
[BlackElo "2212"]
[TimeControl "180+1"]
[EndTime "10:19:24 PDT"]
[Termination "Irishchessman16 won by resignation"]

1. e4 {[%clk 0:03:00.9]} 1... c5 {[%clk 0:02:57]} 2. Nf3 {[%clk 0:03:01.2]} 2...
e6 {[%clk 0:02:56.8]} 3. d4 {[%clk 0:03:01.3]} 3... cxd4 {[%clk 0:02:57.7]} 4.
Nxd4 {[%clk 0:03:01.8]} 4... a6 {[%clk 0:02:58.2]} 5. Nc3 {[%clk 0:03:02.4]}
5... b5 {[%clk 0:02:58.1]} 6. Bd3 {[%clk 0:02:59.3]} 6... Qb6 {[%clk 0:02:56.8]}
7. Be3 {[%clk 0:02:55.8]} 7... Bc5 {[%clk 0:02:56]} 8. Nce2 {[%clk 0:02:53.6]}
8... Nc6 {[%clk 0:02:55.9]} 9. c3 {[%clk 0:02:52.1]} 9... b4 {[%clk 0:02:46.3]}
10. O-O {[%clk 0:02:50.5]} 10... Nf6 {[%clk 0:02:45.7]} 11. h3 {[%clk
0:02:16.9]} 11... Bb7 {[%clk 0:02:40.7]} 12. Nxc6 {[%clk 0:02:10.6]} 12... Bxe3
{[%clk 0:02:37.2]} 13. Nxb4 {[%clk 0:02:09.9]} 13... Bc5 {[%clk 0:02:31.1]} 14.
e5 {[%clk 0:02:08]} 14... Bxb4 {[%clk 0:02:30]} 15. exf6 {[%clk 0:01:33.1]}
15... Bc5 {[%clk 0:02:17]} 16. b4 {[%clk 0:01:30.6]} 16... Bd6 {[%clk
0:02:10.7]} 17. fxg7 {[%clk 0:01:18.1]} 17... Rg8 {[%clk 0:02:10.2]} 18. Qc2
{[%clk 0:01:05.8]} 18... Rxg7 {[%clk 0:02:09.3]} 19. Be4 {[%clk 0:01:06.1]}
19... Rc8 {[%clk 0:01:56.5]} 20. Rad1 {[%clk 0:01:05.4]} 20... Be5 {[%clk
0:01:39]} 21. Kh1 {[%clk 0:00:27.4]} 21... d5 {[%clk 0:01:17.2]} 22. Bf3 {[%clk
0:00:23.2]} 22... d4 {[%clk 0:01:17.2]} 23. Bxb7 {[%clk 0:00:14.7]} 23... Qxb7
{[%clk 0:01:18.1]} 24. f3 {[%clk 0:00:13.2]} 24... dxc3 {[%clk 0:01:10.6]} 25.
Qa4+ {[%clk 0:00:13]} 25... Qc6 {[%clk 0:01:05.8]} 26. Qxc6+ {[%clk 0:00:11.1]}
26... Rxc6 {[%clk 0:01:06.7]} 27. Rc1 {[%clk 0:00:09.1]} 27... Ke7 {[%clk
0:01:03]} 28. Rc2 {[%clk 0:00:09.1]} 28... Rg8 {[%clk 0:01:02.9]} 29. Rfc1
{[%clk 0:00:08.4]} 29... Rgc8 {[%clk 0:01:03.3]} 30. f4 {[%clk 0:00:07.3]} 30...
Bf6 {[%clk 0:01:03.1]} 31. g3 {[%clk 0:00:07.6]} 31... Rc4 {[%clk 0:01:02.6]}
32. a3 {[%clk 0:00:07.3]} 32... a5 {[%clk 0:00:44.9]} 33. Kg2 {[%clk 0:00:07.6]}
33... axb4 {[%clk 0:00:44.5]} 34. axb4 {[%clk 0:00:08.2]} 34... Rxb4 {[%clk
0:00:45.4]} 35. Kf3 {[%clk 0:00:04.7]} 35... Rb2 {[%clk 0:00:31.1]} 36. Ke3
{[%clk 0:00:04.8]} 36... e5 {[%clk 0:00:28.3]} 37. Kd3 {[%clk 0:00:03.8]} 37...
exf4 {[%clk 0:00:27.7]} 38. Nxf4 {[%clk 0:00:02.4]} 38... Rd8+ {[%clk
0:00:26.3]} 39. Ke4 {[%clk 0:00:02.2]} 39... Rb4+ {[%clk 0:00:25.4]} 40. Kf5
{[%clk 0:00:02.7]} 40... Rb5+ {[%clk 0:00:23]} 41. Kg4 {[%clk 0:00:03.1]} 41...
Rd4 {[%clk 0:00:20.5]} 42. Kf3 {[%clk 0:00:03.2]} 42... Rc4 {[%clk 0:00:18.9]}
43. Re1+ {[%clk 0:00:02.9]} 43... Kf8 {[%clk 0:00:19]} 44. Rd1 {[%clk
0:00:02.1]} 44... Rb2 {[%clk 0:00:19.1]} 45. Rdc1 {[%clk 0:00:01.7]} 45... Be5
{[%clk 0:00:12.7]} 46. Nd3 {[%clk 0:00:01.6]} 46... Rxc2 {[%clk 0:00:13]} 47.
Rxc2 {[%clk 0:00:02.5]} 47... Bf6 {[%clk 0:00:10.3]} 48. Nf4 {[%clk 0:00:02.8]}
48... Kg7 {[%clk 0:00:08.1]} 49. Nh5+ {[%clk 0:00:02.6]} 49... Kg6 {[%clk
0:00:08.6]} 50. Nf4+ {[%clk 0:00:02.8]} 50... Kf5 {[%clk 0:00:08.4]} 51. Nd5
{[%clk 0:00:03.1]} 51... Be5 {[%clk 0:00:06.1]} 52. Ne3+ {[%clk 0:00:03.2]}
52... Ke6 {[%clk 0:00:05.5]} 53. Nxc4 {[%clk 0:00:04.1]} 53... Kd5 {[%clk
0:00:05.7]} 1-0